fUST/lending_fUST_20240703
["ID","MTS","AMOUNT","RATE_DAILY","PERIOD"]
[330937422,1719952241285,-777.89,0.00014068,2]
[330937423,1719952241296,-500.0,0.00014068,2]
[330937424,1719952241307,-786.68,0.00014068,2]
[330937425,1719952241317,-500.0,0.00014068,2]
[330937426,1719952241328,-500.0,0.00014068,2]
[330937427,1719952241339,-956.03,0.00014068,2]
[330937428,1719952241350,-500.0,0.00014068,2]
[330937429,1719952241362,-500.0,0.00014068,2]
[330937430,1719952241374,-500.0,0.00014068,2]
[330937431,1719952241385,-500.0,0.00014068,2]
[330937432,1719952241395,-589.02,0.00014068,2]
[330937433,1719952241405,-737.37,0.00014068,2]
[330937434,1719952241414,-500.0,0.00014068,2]
[330937435,1719952241424,-606.83,0.00014068,2]
[330937436,1719952241604,-680.13,0.00014068,2]
[330937437,1719952241624,-569.04,0.00014069,2]
[330937438,1719952241637,-500.0,0.00014069,2]
[330937439,1719952241647,-722.06,0.00014069,2]
[330937440,1719952241656,-500.0,0.00014069,2]
[330937441,1719952241666,-500.0,0.00014069,2]
[330937442,1719952241676,-664.64,0.00014069,2]
[330937443,1719952241686,-500.0,0.00014069,2]
[330937444,1719952241697,-500.0,0.00014069,2]
[330937445,1719952241706,-500.0,0.00014069,2]
[330937446,1719952241716,-500.0,0.00014069,2]
[330937447,1719952241725,-500.0,0.00014069,2]
[330937448,1719952241735,-7391.26763664,0.00014069,2]
[330937449,1719952241885,-836.09629661,0.00014069,2]
[330937472,1719952245483,273.37336231,9.9e-05,2]
[330937482,1719952253412,273.37336231,9.9e-05,2]
[330937483,1719952263147,273.37336231,9.9e-05,2]
[330937484,1719952270844,1064.65125235,0.00013971,2]
[330937485,1719952270883,273.37336231,9.9e-05,2]
[330937486,1719952278960,273.37336231,9.9e-05,2]
[330937487,1719952282833,24900.0,0.00013069,2]
[330937488,1719952286852,273.37336231,9.9e-05,2]
[330937489,1719952295533,273.37336231,9.9e-05,2]
[330937490,1719952303327,273.37336231,9.9e-05,2]
[330937491,1719952311538,273.37336231,9.9e-05,2]
[330937492,1719952317672,155.21382447,9.9e-05,2]
[330937493,1719952319343,273.37336231,9.9e-05,2]
[330937494,1719952327424,273.37336231,9.9e-05,2]
[330937495,1719952327817,587.7182223,9.9e-05,2]
[330937496,1719952334322,200.01501858,9.999e-05,2]
[330937497,1719952335387,273.37336231,9.9e-05,2]
[330937498,1719952344161,273.37336231,9.9e-05,2]
[330937499,1719952351956,273.37336231,9.9e-05,2]
[330937500,1719952360735,273.37336231,9.9e-05,2]
[330937501,1719952369367,273.37336231,9.9e-05,2]
[330937502,1719952377600,273.37336231,9.9e-05,2]
[330937503,1719952402108,250.0,0.00013069,2]
[330937504,1719952403197,3771.31175907,9.9e-05,2]
[330937506,1719952409547,842.64804764,9.999e-05,2]
[330937507,1719952412754,725.60164127,9.999e-05,2]
[330937508,1719952412959,1860.38603495,9.9e-05,2]
[330937509,1719952417098,776.67023249,9.999e-05,2]
[330937510,1719952422832,935.25685846,9.999e-05,2]
[330937512,1719952429131,5286.34479944,0.00013903,2]
[330937513,1719952451654,3771.31175907,0.00012,2]
[330937515,1719952454418,159.55601659,9.999e-05,2]
[330937516,1719952456715,294.59280484,9.999e-05,2]
[330937517,1719952460191,160.0,9.999e-05,2]
[330937518,1719952466781,530.50776108,9.999e-05,2]
[330937519,1719952470553,623.43394281,0.0001212,2]
[330937521,1719952471296,189.29518759,9.999e-05,2]
[330937522,1719952471719,162.91090393,9.999e-05,2]
[330937523,1719952472892,154.86836189,9.999e-05,2]
[330937524,1719952473511,154.95839687,9.999e-05,2]
[330937525,1719952474356,169.03338578,9.999e-05,2]
[330937526,1719952476415,155.29293887,9.999e-05,2]
[330937527,1719952479601,452.30905176,9.999e-05,2]
[330937528,1719952482401,155.1583484,9.999e-05,2]
[330937529,1719952486401,179.51481294,9.999e-05,2]
[330937530,1719952486864,154.99075164,9.999e-05,2]
[330937531,1719952487892,154.86836189,9.999e-05,2]
[330937532,1719952488967,402.16827863,9.999e-05,2]
[330937533,1719952489765,286.70325749,9.999e-05,2]
[330937534,1719952492646,1437.352149,0.0001212,2]
[330937535,1719952493813,597.70730701,9.999e-05,2]
[330937536,1719952503913,402.16827863,9.999e-05,2]
[330937537,1719952505770,307.47346519,0.0001212,2]
[330937538,1719952506597,154.86836189,9.999e-05,2]
[330937539,1719952508341,155.503882,9.999e-05,2]
[330937540,1719952512484,402.85732737,9.999e-05,2]
[330937541,1719952520929,309.61298378,9.999e-05,2]
[330937542,1719952525035,613.80017943,9.999e-05,2]
[330937543,1719952528864,154.86836189,0.0001,2]
[330937544,1719952532234,286.70325749,0.0001212,2]
[330937546,1719952538190,155.0629097,9.999e-05,2]
[330937547,1719952541307,155.24388584,9.999e-05,2]
[330937548,1719952541427,402.16827863,0.0001212,2]
[330937550,1719952546530,154.86836189,9.999e-05,2]
[330937551,1719952546896,931.56984585,0.00013966,2]
[330937553,1719952549262,155.71287648,9.999e-05,2]
[330937554,1719952552101,154.86836189,0.0001212,2]
[330937557,1719952568686,283.5245364,9.999e-05,2]
[330937558,1719952571113,200.79020594,9.999e-05,2]
[330937559,1719952572235,287.90891813,0.0001212,2]
[330937560,1719952578230,733.8827837,0.00013069,2]
[330937561,1719952578446,320.23954076,9.999e-05,2]
[330937562,1719952582390,155.55335023,0.0001212,2]
[330937563,1719952587032,155.21974479,0.0001212,2]
[330937566,1719952606448,373.12925046,0.0001212,2]
[330937567,1719952607106,214.29886304,0.0001212,2]
[330937569,1719952610556,154.86836189,9.999e-05,2]
[330937571,1719952616773,9993.97853732,0.000125,2]
[330937578,1719952639079,3000.0,0.00013699,2]
[330937579,1719952639535,323.66188023,0.0001,2]
[330937584,1719952669315,598.04930631,0.00012121,2]
[330937585,1719952670667,154.86836189,9.999e-05,2]
[330937586,1719952671262,286.45866748,0.00012121,2]
[330937589,1719952687130,282.93616103,0.00012121,2]
[330937590,1719952697029,491.33508365,0.00012121,2]
[330937591,1719952701228,164.04060289,0.00012121,2]
[330937592,1719952702417,155.02402872,0.00012121,2]
[330937593,1719952704627,267.84334631,0.00012121,2]
[330937594,1719952710175,154.86836189,0.00012121,2]
[330937595,1719952713030,1284.76673272,0.00012121,2]
[330937596,1719952719010,285.30430484,0.00012121,2]
[330937598,1719952728572,154.86836189,9.999e-05,2]
[330937599,1719952731576,819.830591,0.00013699,2]
[330937601,1719952759125,200.79020594,9.999e-05,2]
[330937602,1719952774760,236.60958914,9.999e-05,2]
[330937603,1719952778062,195.47966853,9.999e-05,2]
[330937605,1719952802952,318.0694556,9.999e-05,2]
[330937606,1719952814308,864.91777476,9.999e-05,2]
[330937607,1719952816001,24900.0,0.00013068,2]
[330937608,1719952817739,1107.41147255,0.00013794,2]
[330937609,1719952818460,301.07559317,9.999e-05,2]
[330937610,1719952827039,959.12687029,0.00013966,2]
[330937611,1719952827809,154.86836189,9.999e-05,2]
[330937612,1719952828957,163.0719479,0.0001393,2]
[330937613,1719952831293,159.44096684,9.999e-05,2]
[330937614,1719952838380,528.63416526,9.999e-05,2]
[330937615,1719952838445,310.5573532,0.00014,2]
[330937616,1719952846350,597.70544221,0.0001212,2]
[330937617,1719952870183,154.86836189,0.0001212,2]
[330937618,1719952879792,175.89790425,9.999e-05,2]
[330937620,1719952919099,500.0,0.000139,7]
[330937621,1719952944252,154.86836189,9.999e-05,2]
[330937622,1719952959395,154.86836189,9.999e-05,2]
[330937623,1719952981835,155.39379015,9.999e-05,2]
[330937624,1719952984343,212.02110912,9.999e-05,2]
[330937625,1719953060137,200.79020594,9.999e-05,2]
[330937629,1719953090136,200.79020594,9.999e-05,2]
[330937630,1719953102094,15659.7012299,0.00013172,2]
[330937631,1719953107387,965.23885983,0.00013965,2]
[330937632,1719953137660,200.79020594,0.0001212,2]
[330937637,1719953270499,25000.0,0.00014,2]
[330937638,1719953272909,3000.0,0.00013699,2]
[330937639,1719953290313,159.35113188,9.999e-05,2]
[330937640,1719953340124,409.915296,0.00013699,2]
[330937641,1719953356163,211.448192,9.999e-05,2]
[330937642,1719953379824,26338.451426,0.00014,2]
[330937643,1719953388591,-300.0,0.00014063,2]
[330937644,1719953388621,-300.0,0.00014063,2]
[330937645,1719953388649,-88.28398309,0.00014064,2]
[330937646,1719953388681,-411.71601691,0.00014064,2]
[330937647,1719953388714,-240.18234054,0.00014064,2]
[330937648,1719953393046,954.83649457,0.00013965,2]
[330937685,1719953432613,-300.0,0.00014063,2]
[330937687,1719953432622,-300.0,0.00014063,2]
[330937689,1719953432632,-100.89658288,0.00014064,2]
[330937849,1719953438582,-72.73839108,0.00014064,2]
[330937850,1719953438592,-503.3144259,0.00014064,2]
[330937851,1719953438601,-500.0,0.00014064,2]
[330937852,1719953438610,-503.51665328,0.00014064,2]
[330937853,1719953438619,-441.40422605,0.00014064,2]
[330937854,1719953438628,-500.0,0.00014064,2]
[330937855,1719953438638,-38.85207739,0.00014064,2]
[330937856,1719953438651,-461.14792261,0.00014064,2]
[330937857,1719953438661,-500.0,0.00014064,2]
[330937858,1719953438671,-40.85527799,0.00014064,2]
[330937859,1719953440324,-459.14472201,0.00014064,2]
[330937860,1719953440334,-500.0,0.00014064,2]
[330937861,1719953440344,-500.0,0.00014064,2]
[330937862,1719953440353,-500.0,0.00014064,2]
[330937863,1719953440362,-500.0,0.00014064,2]
[330937864,1719953440372,-500.0,0.00014064,2]
[330937865,1719953440381,-709.62,0.00014064,2]
[330937866,1719953440390,-500.0,0.00014064,2]
[330937867,1719953440400,-500.0,0.00014064,2]
[330937868,1719953440409,-1961.17,0.00014064,2]
[330937869,1719953440418,-500.0,0.00014064,2]
[330937870,1719953440427,-500.0,0.00014064,2]
[330937871,1719953440437,-500.0,0.00014064,2]
[330937872,1719953440447,-500.0,0.00014064,2]
[330937873,1719953440456,-763.02,0.00014064,2]
[330937874,1719953440466,-500.0,0.00014064,2]
[330937875,1719953440475,-13066.27,0.00014064,2]
[330937876,1719953440485,-500.0,0.00014064,2]
[330937877,1719953440494,-500.0,0.00014064,2]
[330937878,1719953440504,-500.0,0.00014064,2]
[330937879,1719953440514,-1012.0,0.00014065,2]
[330937880,1719953440524,-500.0,0.00014065,2]
[330937881,1719953440533,-500.0,0.00014065,2]
[330937882,1719953440542,-500.0,0.00014065,2]
[330937883,1719953440552,-500.0,0.00014065,2]
[330937884,1719953440561,-1058.43,0.00014065,2]
[330937885,1719953440570,-500.0,0.00014065,2]
[330937886,1719953440579,-500.0,0.00014065,2]
[330937887,1719953440589,-500.0,0.00014065,2]
[330937888,1719953440598,-900.84,0.00014065,2]
[330937889,1719953440607,-1156.99,0.00014065,2]
[330937890,1719953440617,-608.91,0.00014065,2]
[330937891,1719953440626,-500.0,0.00014065,2]
[330937892,1719953440636,-322.13289625,0.00014065,2]
[330937896,1719953441066,-500.0,0.00014064,2]
[330937897,1719953441077,-1451.22,0.00014064,2]
[330937898,1719953441088,-177.86710375,0.00014065,2]
[330937899,1719953441098,-652.55,0.00014065,2]
[330937900,1719953441108,-500.0,0.00014065,2]
[330937901,1719953441118,-500.0,0.00014065,2]
[330937902,1719953441128,-500.0,0.00014065,2]
[330937903,1719953441137,-648.63,0.00014065,2]
[330937904,1719953441147,-601.13,0.00014065,2]
[330937905,1719953441156,-500.0,0.00014065,2]
[330937906,1719953441166,-500.0,0.00014065,2]
[330937907,1719953441175,-500.0,0.00014065,2]
[330937908,1719953441185,-500.0,0.00014065,2]
[330937909,1719953441194,-500.0,0.00014065,2]
[330937910,1719953441204,-500.0,0.00014065,2]
[330937911,1719953441214,-500.0,0.00014065,2]
[330937912,1719953441223,-500.0,0.00014065,2]
[330937913,1719953441233,-500.0,0.00014065,2]
[330937914,1719953441242,-500.0,0.00014065,2]
[330937915,1719953441251,-500.0,0.00014065,2]
[330937916,1719953441262,-500.0,0.00014065,2]
[330937917,1719953441410,-500.0,0.00014065,2]
[330937918,1719953441440,-500.0,0.00014065,2]
[330937919,1719953441449,-572.32,0.00014065,2]
[330937920,1719953441459,-500.0,0.00014065,2]
[330937921,1719953441468,-500.0,0.00014065,2]
[330937922,1719953441476,-500.0,0.00014065,2]
[330937923,1719953441485,-500.0,0.00014065,2]
[330937924,1719953441494,-2660.79,0.00014065,2]
[330937925,1719953441504,-500.0,0.00014065,2]
[330937926,1719953441512,-500.0,0.00014065,2]
[330937927,1719953441521,-500.0,0.00014065,2]
[330937928,1719953441530,-684.69,0.00014065,2]
[330937929,1719953441539,-500.0,0.00014065,2]
[330937930,1719953441547,-500.0,0.00014065,2]
[330937931,1719953441556,-500.0,0.00014065,2]
[330937932,1719953441565,-1189.34,0.00014065,2]
[330937933,1719953441574,-500.0,0.00014065,2]
[330937934,1719953441583,-500.0,0.00014065,2]
[330937935,1719953441592,-500.0,0.00014065,2]
[330937936,1719953441601,-552.24,0.00014065,2]
[330937937,1719953441610,-151.0,0.00014065,2]
[330937938,1719953441619,-271.127465,0.00014065,2]
[330937939,1719953441629,-755.48,0.00014065,2]
[330937940,1719953441638,-21.12698171,0.00014065,2]
[330937963,1719953444040,-526.95,0.00014064,2]
[330937964,1719953444050,-500.0,0.00014064,2]
[330937965,1719953444059,-478.87301829,0.00014065,2]
[330937966,1719953444068,-271.127465,0.00014065,2]
[330937967,1719953444080,-500.0,0.00014065,2]
[330937968,1719953444090,-500.0,0.00014065,2]
[330937969,1719953444100,-500.0,0.00014065,2]
[330937970,1719953444111,-151.0,0.00014065,2]
[330937971,1719953444121,-708.11,0.00014065,2]
[330937972,1719953444131,-500.0,0.00014065,2]
[330937973,1719953444142,-151.0,0.00014065,2]
[330937974,1719953444152,-1195.87,0.00014065,2]
[330937975,1719953444161,-2542.93,0.00014065,2]
[330937976,1719953444171,-721.13,0.00014065,2]
[330937977,1719953444181,-500.0,0.00014065,2]
[330937978,1719953444190,-721.13,0.00014065,2]
[330937979,1719953444199,-5669.46,0.00014065,2]
[330937980,1719953444209,-7177.56,0.00014065,2]
[330937981,1719953444218,-151.0,0.00014065,2]
[330937982,1719953444227,-151.0,0.00014065,2]
[330937983,1719953444237,-151.0,0.00014065,2]
[330937984,1719953444246,-151.0,0.00014065,2]
[330937985,1719953444255,-151.0,0.00014065,2]
[330937986,1719953444265,-2764.22,0.00014065,2]
[330937987,1719953444275,-500.0,0.00014065,2]
[330937988,1719953444284,-269.150644,0.00014065,2]
[330937989,1719953444294,-500.0,0.00014065,2]
[330937990,1719953444303,-500.0,0.00014065,2]
[330937991,1719953444312,-151.0,0.00014065,2]
[330937992,1719953444322,-151.0,0.00014065,2]
[330937993,1719953444332,-500.0,0.00014065,2]
[330937994,1719953444342,-151.0,0.00014065,2]
[330937995,1719953444351,-151.0,0.00014065,2]
[330937996,1719953444360,-500.0,0.00014065,2]
[330937997,1719953444370,-500.0,0.00014065,2]
[330937998,1719953444379,-1408.99,0.00014065,2]
[330937999,1719953444388,-151.0,0.00014065,2]
[330938000,1719953444398,-151.0,0.00014065,2]
[330938001,1719953444407,-151.0,0.00014065,2]
[330938002,1719953444416,-151.0,0.00014065,2]
[330938003,1719953444425,-500.0,0.00014065,2]
[330938004,1719953444435,-151.0,0.00014065,2]
[330938005,1719953444444,-151.0,0.00014065,2]
[330938006,1719953444453,-151.0,0.00014065,2]
[330938007,1719953444465,-151.0,0.00014065,2]
[330938008,1719953444475,-500.0,0.00014065,2]
[330938009,1719953444484,-151.0,0.00014065,2]
[330938010,1719953444494,-151.0,0.00014065,2]
[330938011,1719953444503,-1047.62,0.00014065,2]
[330938012,1719953444512,-500.0,0.00014065,2]
[330938013,1719953444522,-151.0,0.00014065,2]
[330938014,1719953444531,-151.0,0.00014065,2]
[330938015,1719953444540,-3581.02,0.00014065,2]
[330938016,1719953444549,-500.0,0.00014065,2]
[330938017,1719953444558,-2736.70885657,0.00014065,2]
[330938018,1719953444698,-761.97114343,0.00014065,2]
[330938019,1719953444708,-500.0,0.00014066,2]
[330938020,1719953444717,-500.0,0.00014066,2]
[330938021,1719953444726,-506.94,0.00014066,2]
[330938022,1719953444736,-500.0,0.00014066,2]
[330938023,1719953444746,-500.0,0.00014066,2]
[330938024,1719953444756,-500.0,0.00014066,2]
[330938025,1719953444765,-500.0,0.00014066,2]
[330938026,1719953444775,-405.61718871,0.00014066,2]
[330938027,1719953444786,-94.38281129,0.00014066,2]
[330938028,1719953444795,-500.0,0.00014066,2]
[330938029,1719953444805,-500.0,0.00014066,2]
[330938030,1719953444815,-500.0,0.00014066,2]
[330938031,1719953444824,-500.0,0.00014066,2]
[330938032,1719953444833,-500.0,0.00014066,2]
[330938033,1719953444843,-525.12,0.00014066,2]
[330938034,1719953444852,-500.0,0.00014066,2]
[330938035,1719953444862,-500.0,0.00014066,2]
[330938036,1719953444871,-500.0,0.00014066,2]
[330938037,1719953444880,-500.0,0.00014066,2]
[330938038,1719953444890,-500.0,0.00014066,2]
[330938039,1719953444899,-500.0,0.00014066,2]
[330938040,1719953444909,-500.0,0.00014066,2]
[330938041,1719953444919,-500.0,0.00014066,2]
[330938042,1719953444929,-500.0,0.00014066,2]
[330938043,1719953444939,-220.89780202,0.00014066,2]
[330938044,1719953444949,-500.0,0.00014066,2]
[330938045,1719953444958,-571.31,0.00014066,2]
[330938046,1719953444968,-500.0,0.00014066,2]
[330938047,1719953444978,-569.48933944,0.00014066,2]
[330938048,1719953444988,-500.0,0.00014066,2]
[330938049,1719953444999,-500.0,0.00014066,2]
[330938050,1719953445013,-379.43785023,0.00014066,2]
[330938051,1719953445026,-120.56214977,0.00014066,2]
[330938052,1719953445035,-500.0,0.00014066,2]
[330938053,1719953445047,-500.0,0.00014066,2]
[330938054,1719953445056,-151.0,0.00014066,2]
[330938055,1719953445066,-151.0,0.00014066,2]
[330938056,1719953445075,-151.0,0.00014066,2]
[330938057,1719953445086,-780.2,0.00014066,2]
[330938058,1719953445096,-500.0,0.00014066,2]
[330938059,1719953445107,-500.0,0.00014066,2]
[330938060,1719953445116,-500.0,0.00014066,2]
[330938061,1719953445127,-500.0,0.00014066,2]
[330938062,1719953445136,-500.0,0.00014066,2]
[330938063,1719953445146,-500.0,0.00014066,2]
[330938064,1719953445156,-500.0,0.00014066,2]
[330938065,1719953445166,-500.0,0.00014066,2]
[330938066,1719953445176,-500.0,0.00014066,2]
[330938067,1719953445187,-500.0,0.00014066,2]
[330938068,1719953445198,-500.0,0.00014066,2]
[330938069,1719953445208,-500.0,0.00014066,2]
[330938070,1719953445218,-6991.72,0.00014066,2]
[330938071,1719953445227,-500.0,0.00014066,2]
[330938072,1719953445236,-500.0,0.00014066,2]
[330938073,1719953445246,-500.0,0.00014066,2]
[330938074,1719953445256,-500.0,0.00014066,2]
[330938075,1719953445265,-500.0,0.00014066,2]
[330938076,1719953445275,-500.0,0.00014066,2]
[330938077,1719953445284,-500.0,0.00014066,2]
[330938078,1719953445294,-500.0,0.00014066,2]
[330938079,1719953445311,-500.0,0.00014066,2]
[330938080,1719953445323,-500.0,0.00014066,2]
[330938081,1719953445333,-1108.22,0.00014066,2]
[330938082,1719953445343,-500.0,0.00014066,2]
[330938083,1719953445353,-214.0313899,0.00014066,2]
[330938084,1719953445367,-293.26520376,0.00014066,2]
[330938085,1719953445379,-809.68340634,0.00014066,2]
[330938086,1719953445389,-319.16344176,0.00014066,2]
[330938097,1719953446646,-180.83655824,0.00014066,2]
[330938098,1719953446655,-283.40749428,0.00014066,2]
[330938099,1719953446758,-216.59250572,0.00014066,2]
[330938101,1719953446768,-500.0,0.00014066,2]
[330938103,1719953446777,-500.0,0.00014066,2]
[330938104,1719953446786,-500.0,0.00014066,2]
[330938105,1719953446796,-151.0,0.00014066,2]
[330938107,1719953446961,-151.0,0.00014066,2]
[330938108,1719953446970,-500.0,0.00014066,2]
[330938109,1719953446980,-500.0,0.00014066,2]
[330938110,1719953446989,-500.0,0.00014066,2]
[330938111,1719953446999,-500.0,0.00014066,2]
[330938112,1719953447014,-500.0,0.00014066,2]
[330938113,1719953447023,-750.53,0.00014066,2]
[330938114,1719953447032,-599.12,0.00014066,2]
[330938115,1719953447043,-500.0,0.00014066,2]
[330938116,1719953447052,-500.0,0.00014066,2]
[330938117,1719953447062,-171.93553032,0.00014066,2]
[330938118,1719953447071,-500.0,0.00014066,2]
[330938119,1719953447084,-262.768209,0.00014066,2]
[330938120,1719953447093,-500.0,0.00014066,2]
[330938121,1719953447103,-500.0,0.00014066,2]
[330938122,1719953447113,-500.0,0.00014066,2]
[330938123,1719953447122,-500.0,0.00014066,2]
[330938124,1719953447132,-151.0,0.00014066,2]
[330938125,1719953447141,-151.0,0.00014066,2]
[330938126,1719953447150,-151.0,0.00014066,2]
[330938127,1719953447160,-151.0,0.00014066,2]
[330938128,1719953447169,-151.0,0.00014066,2]
[330938129,1719953447179,-151.0,0.00014066,2]
[330938130,1719953447188,-151.0,0.00014066,2]
[330938131,1719953447198,-151.0,0.00014066,2]
[330938132,1719953447207,-151.0,0.00014066,2]
[330938133,1719953447215,-151.0,0.00014066,2]
[330938134,1719953447225,-151.0,0.00014066,2]
[330938135,1719953447234,-151.0,0.00014066,2]
[330938136,1719953447243,-853.81,0.00014066,2]
[330938137,1719953447252,-555.2,0.00014066,2]
[330938138,1719953447262,-808.36,0.00014066,2]
[330938139,1719953447271,-500.0,0.00014066,2]
[330938140,1719953447280,-500.0,0.00014066,2]
[330938141,1719953447289,-500.0,0.00014066,2]
[330938142,1719953447298,-1045.46,0.00014066,2]
[330938143,1719953447308,-500.0,0.00014066,2]
[330938144,1719953447318,-151.0,0.00014066,2]
[330938145,1719953447327,-151.0,0.00014066,2]
[330938146,1719953447336,-151.0,0.00014066,2]
[330938147,1719953447346,-151.0,0.00014066,2]
[330938148,1719953447355,-152.557248,0.00014066,2]
[330938149,1719953447364,-271.127465,0.00014066,2]
[330938150,1719953447373,-271.127465,0.00014066,2]
[330938151,1719953447382,-271.127465,0.00014066,2]
[330938152,1719953447391,-271.127465,0.00014066,2]
[330938153,1719953447401,-271.127465,0.00014066,2]
[330938154,1719953447410,-271.127465,0.00014066,2]
[330938155,1719953447419,-271.127465,0.00014066,2]
[330938156,1719953447428,-271.127465,0.00014066,2]
[330938157,1719953447438,-271.127465,0.00014066,2]
[330938158,1719953447447,-271.127465,0.00014066,2]
[330938159,1719953447456,-500.0,0.00014066,2]
[330938160,1719953447465,-151.0,0.00014066,2]
[330938161,1719953447475,-151.0,0.00014066,2]
[330938162,1719953447484,-151.0,0.00014066,2]
[330938163,1719953447493,-151.0,0.00014066,2]
[330938164,1719953447503,-151.0,0.00014066,2]
[330938165,1719953447511,-225.08382,0.00014066,2]
[330938166,1719953447521,-500.0,0.00014066,2]
[330938167,1719953447530,-721.13,0.00014066,2]
[330938168,1719953447539,-500.0,0.00014066,2]
[330938169,1719953447549,-660.46,0.00014066,2]
[330938170,1719953447559,-151.0,0.00014066,2]
[330938171,1719953447569,-151.0,0.00014066,2]
[330938172,1719953447580,-151.0,0.00014066,2]
[330938173,1719953447589,-151.0,0.00014066,2]
[330938174,1719953447599,-151.0,0.00014066,2]
[330938175,1719953447609,-151.0,0.00014066,2]
[330938176,1719953447621,-151.0,0.00014066,2]
[330938177,1719953447630,-151.0,0.00014066,2]
[330938178,1719953447641,-151.0,0.00014066,2]
[330938179,1719953447650,-151.0,0.00014066,2]
[330938180,1719953447659,-151.0,0.00014066,2]
[330938181,1719953447669,-151.0,0.00014066,2]
[330938182,1719953447679,-151.0,0.00014066,2]
[330938183,1719953447689,-830.13,0.00014066,2]
[330938184,1719953447697,-151.0,0.00014066,2]
[330938185,1719953447706,-151.0,0.00014066,2]
[330938186,1719953447716,-151.0,0.00014066,2]
[330938187,1719953447728,-151.0,0.00014066,2]
[330938188,1719953447737,-151.0,0.00014066,2]
[330938189,1719953447746,-1050.41,0.00014066,2]
[330938190,1719953447756,-151.0,0.00014066,2]
[330938191,1719953447766,-237.068136,0.00014066,2]
[330938192,1719953447775,-151.0,0.00014066,2]
[330938193,1719953447784,-151.0,0.00014066,2]
[330938194,1719953447793,-500.0,0.00014066,2]
[330938195,1719953447802,-151.0,0.00014066,2]
[330938196,1719953447812,-151.0,0.00014066,2]
[330938197,1719953447821,-151.0,0.00014066,2]
[330938198,1719953447830,-151.0,0.00014066,2]
[330938199,1719953447841,-151.0,0.00014066,2]
[330938200,1719953447850,-169.758044,0.00014066,2]
[330938201,1719953447859,-151.0,0.00014066,2]
[330938202,1719953447869,-151.0,0.00014066,2]
[330938203,1719953447879,-151.0,0.00014066,2]
[330938204,1719953447889,-151.0,0.00014066,2]
[330938205,1719953447899,-151.0,0.00014066,2]
[330938206,1719953447909,-151.0,0.00014066,2]
[330938207,1719953447918,-187.98893074,0.00014066,2]
[330938208,1719953447928,-677.38,0.00014066,2]
[330938209,1719953447939,-807.44,0.00014066,2]
[330938210,1719953447948,-151.0,0.00014066,2]
[330938211,1719953447960,-151.0,0.00014066,2]
[330938212,1719953447969,-151.0,0.00014066,2]
[330938213,1719953447977,-151.0,0.00014066,2]
[330938214,1719953447986,-151.0,0.00014066,2]
[330938215,1719953447995,-500.0,0.00014066,2]
[330938216,1719953448007,-500.0,0.00014067,2]
[330938217,1719953448016,-500.0,0.00014067,2]
[330938218,1719953448025,-500.0,0.00014067,2]
[330938219,1719953448035,-500.0,0.00014067,2]
[330938220,1719953448044,-500.0,0.00014067,2]
[330938221,1719953448054,-151.0,0.00014067,2]
[330938222,1719953448063,-211.424782,0.00014067,2]
[330938223,1719953448073,-500.0,0.00014067,2]